fUST/lending_fUST_20260611
["ID","MTS","AMOUNT","RATE_DAILY","PERIOD"]
[424741337,1781111451000,-500.0,0.00022191,2]
[424741333,1781111451000,-500.0,0.00022191,2]
[424741340,1781111451000,-5053.28,0.00022191,2]
[424741341,1781111451000,-500.0,0.00022191,2]
[424741342,1781111451000,-500.0,0.00022191,2]
[424741344,1781111451000,-500.0,0.00022191,2]
[424741343,1781111451000,-500.0,0.00022191,2]
[424741345,1781111451000,-500.0,0.00022191,2]
[424741346,1781111451000,-439.04365906,0.00022191,2]
[424741347,1781111451000,-690.0,0.00022191,2]
[424741348,1781111451000,-500.0,0.00022191,2]
[424741350,1781111451000,-1004.94,0.00022191,2]
[424741379,1781111451000,-632.82,0.00022465,2]
[424741378,1781111451000,-500.0,0.00022465,2]
[424741381,1781111451000,-756.07,0.00022465,2]
[424741404,1781111451000,-221.32,0.00022739,2]
[424741407,1781111451000,-218.080865,0.00022778,14]
[424741409,1781111451000,-151.0,0.00022879,2]
[424741411,1781111451000,-663.99766,0.00023,2]
[424741416,1781111451000,-500.0,0.00023013,2]
[424741418,1781111451000,-500.0,0.00023013,2]
[424741422,1781111451000,-267.32,0.00023013,2]
[424741419,1781111451000,-632.82,0.00023013,2]
[424741426,1781111451000,-185.656675,0.00023226,14]
[424741423,1781111451000,-800.0,0.00023136,2]
[424741424,1781111451000,-800.0,0.0002315,2]
[424741417,1781111451000,-690.0,0.00023013,2]
[424741425,1781111451000,-816.24618937,0.00023221,2]
[424741427,1781111451000,-208.851973,0.00023226,14]
[424741420,1781111451000,-1004.94,0.00023013,2]
[424741429,1781111451000,-500.0,0.00023287,2]
[424741431,1781111451000,-5053.28,0.00023287,2]
[424741428,1781111451000,-347.86352059,0.00023226,2]
[424741430,1781111451000,-500.0,0.00023287,2]
[424741432,1781111451000,-500.0,0.00023287,2]
[424741436,1781111451000,-1004.94,0.00023287,2]
[424741433,1781111451000,-690.0,0.00023287,2]
[424741435,1781111451000,-632.82,0.00023287,2]
[424741434,1781111451000,-500.0,0.00023287,2]
[424741384,1781111451000,-500.0,0.00022465,2]
[424741406,1781111451000,-160.0,0.00022778,14]
[424741410,1781111451000,-648.560333,0.00022889,14]
[424741421,1781111451000,-756.07,0.00023013,2]
[424741405,1781111451000,-158.89,0.00022764,10]
[424741385,1781111451000,-231.46,0.00022466,2]
[424741408,1781111451000,-276.161731,0.00022778,14]
[424741383,1781111451000,-500.0,0.00022465,2]
[424741382,1781111451000,-160.0,0.00022465,2]
[424741380,1781111451000,-1004.94,0.00022465,2]
[424741387,1781111451000,-444.0,0.00022516,2]
[424741388,1781111451000,-186.0,0.00022516,2]
[424741390,1781111451000,-185.656674,0.00022553,14]
[424741389,1781111451000,-234.912744,0.00022553,14]
[424741395,1781111451000,-500.0,0.00022739,2]
[424741392,1781111451000,-170.0,0.00022655,2]
[424741398,1781111451000,-690.0,0.00022739,2]
[424741394,1781111451000,-500.0,0.00022739,2]
[424741386,1781111451000,-395.07389488,0.00022488,2]
[424741403,1781111451000,-500.0,0.00022739,2]
[424741400,1781111451000,-632.82,0.00022739,2]
[424741399,1781111451000,-500.0,0.00022739,2]
[424741391,1781111451000,-796.0,0.000226,2]
[424741402,1781111451000,-756.07,0.00022739,2]
[424741401,1781111451000,-1004.94,0.00022739,2]
[424741396,1781111451000,-5053.28,0.00022739,2]
[424741397,1781111451000,-500.0,0.00022739,2]
[424741415,1781111451000,-5053.28,0.00023013,2]
[424741412,1781111451000,-515.84,0.00023013,2]
[424741393,1781111451000,-500.0,0.00022739,2]
[424741414,1781111451000,-500.0,0.00023013,2]
[424741413,1781111451000,-500.0,0.00023013,2]
[424741474,1781111452000,-151.0,0.00023901,6]
[424741476,1781111452000,-392.545558,0.00023917,14]
[424741468,1781111452000,-632.82,0.00023835,2]
[424741472,1781111452000,-1000.0,0.00023846,10]
[424741473,1781111452000,-327.4714646,0.00023899,2]
[424741475,1781111452000,-151.0,0.00023901,6]
[424741470,1781111452000,-756.07,0.00023835,2]
[424741478,1781111452000,-1757.32664601,0.00024,2]
[424741471,1781111452000,-1000.0,0.00023846,10]
[424741469,1781111452000,-1004.94,0.00023835,2]
[424741480,1781111452000,-28549.85682729,0.00024,2]
[424741477,1781111452000,-151.0,0.00023975,2]
[424741489,1781111452000,-500.0,0.00024102,9]
[424741494,1781111452000,-632.82,0.00024109,2]
[424741481,1781111452000,-1553.79570336,0.00024,3]
[424741491,1781111452000,-500.0,0.00024109,2]
[424741485,1781111452000,-256.0,0.0002409,6]
[424741482,1781111452000,-201.0,0.00024,28]
[424741490,1781111452000,-199.5,0.00024109,2]
[424741483,1781111452000,-247.18754523,0.00024,2]
[424741487,1781111452000,-1107.06,0.000241,2]
[424741492,1781111452000,-5053.28,0.00024109,2]
[424741486,1781111452000,-307.43,0.000241,2]
[424741488,1781111452000,-500.0,0.00024102,9]
[424741504,1781111452000,-615.64,0.00024383,2]
[424741505,1781111452000,-5053.28,0.00024383,2]
[424741479,1781111452000,-471.3781194,0.00024,2]
[424741493,1781111452000,-690.0,0.00024109,2]
[424741466,1781111452000,-395.0,0.00023835,2]
[424741438,1781111452000,-205.76545935,0.000233,6]
[424741458,1781111452000,-800.0,0.000236,2]
[424741439,1781111452000,-255.154613,0.00023348,14]
[424741440,1781111452000,-183.280069,0.00023357,14]
[424741437,1781111452000,-756.07,0.00023287,2]
[424741441,1781111452000,-159.54,0.00023393,10]
[424741444,1781111452000,-300.0,0.00023474,5]
[424741443,1781111452000,-151.0,0.00023427,2]
[424741445,1781111452000,-300.0,0.00023474,5]
[424741446,1781111452000,-2121.0,0.00023508,2]
[424741447,1781111452000,-3483.0,0.00023508,2]
[424741448,1781111452000,-800.0,0.00023527,2]
[424741449,1781111452000,-500.0,0.00023561,2]
[424741450,1781111452000,-500.0,0.00023561,2]
[424741452,1781111452000,-500.0,0.00023561,2]
[424741442,1781111452000,-943.552303,0.00023398,14]
[424741451,1781111452000,-5053.28,0.00023561,2]
[424741454,1781111452000,-421.6,0.00023561,2]
[424741464,1781111452000,-500.0,0.00023835,2]
[424741453,1781111452000,-690.0,0.00023561,2]
[424741465,1781111452000,-5053.28,0.00023835,2]
[424741455,1781111452000,-632.82,0.00023561,2]
[424741456,1781111452000,-1004.94,0.00023561,2]
[424741457,1781111452000,-756.07,0.00023561,2]
[424741463,1781111452000,-322.59849262,0.00023835,2]
[424741459,1781111452000,-182.12978086,0.00023654,6]
[424741460,1781111452000,-201.93286098,0.000237,2]
[424741461,1781111452000,-9816.81782341,0.000237,2]
[424741462,1781111452000,-800.0,0.00023768,2]
[424741467,1781111452000,-690.0,0.00023835,2]
[424741495,1781111452000,-1004.94,0.00024109,2]
[424741484,1781111452000,-163.999415,0.00024,2]
[424741497,1781111452000,-155.65076846,0.0002411,2]
[424741530,1781111452000,-1000.0,0.00024657,2]
[424741533,1781111452000,-1000.0,0.00024657,2]
[424741526,1781111452000,-1000.0,0.00024657,2]
[424741528,1781111452000,-1000.0,0.00024657,2]
[424741532,1781111452000,-1000.0,0.00024657,2]
[424741527,1781111452000,-1000.0,0.00024657,2]
[424741529,1781111452000,-1000.0,0.00024657,2]
[424741538,1781111452000,-1000.0,0.00024657,2]
[424741542,1781111452000,-248.49022389,0.00024658,2]
[424741545,1781111452000,-200.0,0.00024658,2]
[424741540,1781111452000,-1004.94,0.00024657,2]
[424741541,1781111452000,-756.07,0.00024657,2]
[424741543,1781111452000,-496.98044779,0.00024658,2]
[424741550,1781111452000,-797.0,0.00024658,2]
[424741548,1781111452000,-151.5,0.00024658,2]
[424741546,1781111452000,-151.5,0.00024658,2]
[424741549,1781111452000,-279.33877195,0.00024658,2]
[424741544,1781111452000,-380.0,0.00024658,2]
[424741547,1781111452000,-151.5,0.00024658,2]
[424741539,1781111452000,-1135.82555442,0.00024657,2]
[424741551,1781111452000,-797.0,0.00024658,2]
[424741554,1781111452000,-797.0,0.00024658,2]
[424741553,1781111452000,-797.0,0.00024658,2]
[424741556,1781111452000,-797.0,0.00024658,2]
[424741555,1781111452000,-797.0,0.00024658,2]
[424741557,1781111452000,-797.0,0.00024658,2]
[424741552,1781111452000,-797.0,0.00024658,2]
[424741531,1781111452000,-1000.0,0.00024657,2]
[424741535,1781111452000,-1000.0,0.00024657,2]
[424741558,1781111452000,-797.0,0.00024658,2]
[424741525,1781111452000,-1000.0,0.00024657,2]
[424741537,1781111452000,-1000.0,0.00024657,2]
[424741501,1781111452000,-161.84,0.00024232,5]
[424741496,1781111452000,-756.07,0.00024109,2]
[424741503,1781111452000,-554.4652045,0.00024337,2]
[424741499,1781111452000,-164.596674,0.00024157,14]
[424741500,1781111452000,-160.72,0.00024163,10]
[424741502,1781111452000,-504.3611,0.000243,2]
[424741506,1781111452000,-690.0,0.00024383,2]
[424741508,1781111452000,-1004.94,0.00024383,2]
[424741513,1781111452000,-398.91504528,0.000244,2]
[424741507,1781111452000,-632.82,0.00024383,2]
[424741509,1781111452000,-756.07,0.00024383,2]
[424741510,1781111452000,-455.44,0.000244,2]
[424741511,1781111452000,-456.13,0.000244,2]
[424741498,1781111452000,-7655.69771926,0.0002411,2]
[424741514,1781111452000,-151.0,0.00024523,2]
[424741536,1781111452000,-1000.0,0.00024657,2]
[424741512,1781111452000,-1017.3,0.000244,2]
[424741524,1781111452000,-1000.0,0.00024657,2]
[424741517,1781111452000,-531.99374949,0.0002457,2]
[424741521,1781111452000,-5053.28,0.00024657,2]
[424741523,1781111452000,-632.82,0.00024657,2]
[424741534,1781111452000,-1000.0,0.00024657,2]
[424741522,1781111452000,-690.0,0.00024657,2]
[424741519,1781111452000,-158686.24364477,0.0002465,2]
[424741518,1781111452000,-163.0,0.000246,120]
[424741516,1781111452000,-531.99374949,0.00024531,2]
[424741515,1781111452000,-531.99374949,0.00024526,2]
[424741520,1781111452000,-519.96280065,0.0002465,2]
[424741569,1781111453000,-797.0,0.00024658,2]
[424741579,1781111453000,-531.99374949,0.00024748,2]
[424741578,1781111453000,-162.0,0.0002469,120]
[424741576,1781111453000,-161.0,0.0002469,120]
[424741587,1781111453000,-2705.59626914,0.00025,2]
[424741577,1781111453000,-156.0,0.0002469,120]
[424741575,1781111453000,-170.0,0.0002469,120]
[424741574,1781111453000,-165.0,0.0002467,120]
[424741573,1781111453000,-811.19225315,0.00024658,2]
[424741572,1781111453000,-797.0,0.00024658,2]
[424741567,1781111453000,-797.0,0.00024658,2]
[424741566,1781111453000,-797.0,0.00024658,2]
[424741568,1781111453000,-797.0,0.00024658,2]
[424741571,1781111453000,-797.0,0.00024658,2]
[424741565,1781111453000,-797.0,0.00024658,2]
[424741583,1781111453000,-690.0,0.00024931,2]
[424741564,1781111453000,-797.0,0.00024658,2]
[424741559,1781111453000,-797.0,0.00024658,2]
[424741561,1781111453000,-797.0,0.00024658,2]
[424741560,1781111453000,-797.0,0.00024658,2]
[424741562,1781111453000,-797.0,0.00024658,2]
[424741563,1781111453000,-797.0,0.00024658,2]
[424741570,1781111453000,-797.0,0.00024658,2]
[424741580,1781111453000,-4726.65133263,0.0002476,2]
[424741582,1781111453000,-5053.28,0.00024931,2]
[424741581,1781111453000,-300.0,0.00024782,6]
[424741606,1781111453000,-1576.0,0.00018082,2]
[424741607,1781111453000,-318.11572453,0.00018082,2]
[424741605,1781111453000,-1376.0,0.00018082,2]
[424741603,1781111453000,-531.99374949,0.00025424,2]
[424741604,1781111453000,-273411.27903456,0.00025444,2]
[424741584,1781111453000,-632.82,0.00024931,2]
[424741602,1781111453000,-756.07,0.00025205,2]
[424741594,1781111453000,-324.280166,0.00025069,14]
[424741600,1781111453000,-632.82,0.00025205,2]
[424741598,1781111453000,-5053.28,0.00025205,2]
[424741601,1781111453000,-1004.94,0.00025205,2]
[424741596,1781111453000,-531.99374949,0.00025159,2]
[424741595,1781111453000,-151.0,0.00025071,2]
[424741586,1781111453000,-756.07,0.00024931,2]
[424741585,1781111453000,-1004.94,0.00024931,2]
[424741588,1781111453000,-10364.0,0.00025,2]
[424741589,1781111453000,-500.0,0.00025,2]
[424741599,1781111453000,-690.0,0.00025205,2]
[424741591,1781111453000,-150.0,0.00025,2]
[424741590,1781111453000,-150.0,0.00025,2]
[424741593,1781111453000,-152.46453067,0.00025069,2]
[424741597,1781111453000,-531.99374949,0.00025197,2]
[424741592,1781111453000,-639.50310179,0.00025,120]
[424741608,1781111852000,-1056.90754295,0.00010249,2]
[424741610,1781111864000,2619.82248234,0.000101,2]
[424741611,1781112028000,5000.0,0.000101,2]
[424741612,1781112214000,165.0,0.00020696,120]
[424741613,1781112215000,165.0,0.00021696,120]
[424741614,1781112265000,170.0,0.00020699,120]
[424741615,1781112315000,161.0,0.00020699,120]
[424741616,1781112316000,161.0,0.00021699,120]
[424741617,1781112328000,17380.17751766,0.00010042,2]
[424741618,1781112628000,158.0,0.00020699,120]
[424741619,1781112629000,159.65893777,0.00021699,120]
[424741667,1781112635000,-323.8449,9.647e-05,2]
[424741718,1781112638000,-161.81649468,0.00014558,2]
[424741707,1781112638000,-150.12955755,0.00013233,14]
[424741699,1781112638000,-300.0,0.00011216,2]
[424741702,1781112638000,-300.0,0.00011216,2]
[424741701,1781112638000,-300.0,0.00011216,2]
[424741700,1781112638000,-300.0,0.00011216,2]
[424741703,1781112638000,-6239.77617287,0.00011319,7]
[424741704,1781112638000,-6239.77617287,0.00011642,7]
[424741705,1781112638000,-6239.77617287,0.00012074,7]
[424741696,1781112638000,-300.0,0.00011216,2]
[424741698,1781112638000,-300.0,0.00011216,2]
[424741697,1781112638000,-300.0,0.00011216,2]
[424741694,1781112638000,-300.0,0.00011216,2]
[424741693,1781112638000,-300.0,0.00011216,2]
[424741690,1781112638000,-300.0,0.00011216,2]
[424741687,1781112638000,-6239.77617287,0.00010996,7]
[424741691,1781112638000,-300.0,0.00011216,2]
[424741685,1781112638000,-6239.77617287,0.0001078,7]
[424741686,1781112638000,-166.0906,0.00010887,2]
[424741692,1781112638000,-300.0,0.00011216,2]
[424741684,1781112638000,-2658.26029254,0.00010042,2]
[424741688,1781112638000,-300.0,0.00011216,2]
[424741689,1781112638000,-300.0,0.00011216,2]
[424741682,1781112638000,-4676.1551,9.647e-05,2]
[424741683,1781112638000,-3943.09245705,9.744e-05,2]
[424741717,1781112638000,-552.77780552,0.00014557,2]
[424741706,1781112638000,-203.852,0.00013232,2]
[424741695,1781112638000,-300.0,0.00011216,2]
[424741708,1781112638000,-740.72124181,0.00013429,2]
[424741736,1781112638000,-215.69909821,0.00015257,2]
[424741709,1781112638000,-500.0,0.00013698,2]
[424741735,1781112638000,-224.35078273,0.00015257,2]
[424741734,1781112638000,-199.95010417,0.00015257,2]
[424741737,1781112638000,-238.70720101,0.00015257,2]
[424741733,1781112638000,-227.03990571,0.00015257,2]
[424741731,1781112638000,-323.63298936,0.00015257,2]
[424741732,1781112638000,-223.78106143,0.00015257,2]
[424741728,1781112638000,-500.0,0.00015257,2]
[424741724,1781112638000,-187.2364579,0.00014564,2]
[424741727,1781112638000,-216.28733352,0.00014566,2]
[424741730,1781112638000,-244.23634925,0.00015257,2]
[424741720,1781112638000,-152.06146572,0.00014558,2]
[424741722,1781112638000,-163.43959489,0.00014564,2]
[424741729,1781112638000,-172.24580909,0.00015257,2]
[424741711,1781112638000,-500.0,0.00013698,2]
[424741726,1781112638000,-159.97370663,0.00014566,2]
[424741712,1781112638000,-5330.55508464,0.00013699,2]
[424741714,1781112638000,-199.388035,0.00013699,2]
[424741713,1781112638000,-13279.55694246,0.00013699,2]
[424741715,1781112638000,-1000.0,0.00013699,2]
[424741710,1781112638000,-500.0,0.00013698,2]
[424741719,1781112638000,-156.95239924,0.00014558,2]
[424741721,1781112638000,-156.40610795,0.00014564,2]
[424741723,1781112638000,-206.67749886,0.00014564,2]
[424741725,1781112638000,-195.69139187,0.00014566,2]
[424741716,1781112638000,-179.73395,0.00014453,2]
[424741774,1781112639000,-448.70156545,0.00015722,2]
[424741777,1781112639000,-477.41440203,0.00015722,2]
[424741775,1781112639000,-158.76939284,0.00015722,2]
[424741778,1781112639000,-470.85719771,0.00015722,2]
[424741776,1781112639000,-431.39819641,0.00015722,2]
[424741772,1781112639000,-399.90020834,0.00015722,2]
[424741770,1781112639000,-447.56212287,0.00015722,2]
[424741773,1781112639000,-200.00119625,0.00015722,2]
[424741769,1781112639000,-485.44948404,0.00015722,2]
[424741771,1781112639000,-454.07981143,0.00015722,2]
[424741779,1781112639000,-383.00312896,0.00015722,2]
[424741780,1781112639000,-456.18439716,0.00015722,2]
[424741782,1781112639000,-250.3279212,0.00015722,2]
[424741795,1781112639000,-260.93387701,0.00015728,2]
[424741785,1781112639000,-359.68689106,0.00015722,2]
[424741781,1781112639000,-387.29774846,0.00015722,2]
[424741783,1781112639000,-381.08068766,0.00015722,2]
[424741787,1781112639000,-490.31878466,0.00015728,2]
[424741786,1781112639000,-469.21832384,0.00015728,2]
[424741789,1781112639000,-197.2338369,0.00015728,2]
[424741790,1781112639000,-390.11333501,0.00015728,2]
[424741788,1781112639000,-156.33857692,0.00015728,2]
[424741791,1781112639000,-164.44539645,0.00015728,2]
[424741793,1781112639000,-406.19298033,0.00015728,2]
[424741794,1781112639000,-484.99799125,0.00015728,2]
[424741759,1781112639000,-319.94741326,0.00015265,2]
[424741784,1781112639000,-341.51402263,0.00015722,2]
[424741765,1781112639000,-240.88823072,0.00015722,2]
[424741740,1781112639000,-193.64887423,0.00015257,2]
[424741756,1781112639000,-156.19470291,0.00015262,2]
[424741792,1781112639000,-620.03249659,0.00015728,2]
[424741742,1781112639000,-190.54034383,0.00015257,2]
[424741741,1781112639000,-170.75701131,0.00015257,2]
[424741739,1781112639000,-304.12293144,0.00015257,2]
[424741738,1781112639000,-313.90479847,0.00015257,2]
[424741743,1781112639000,-179.84344553,0.00015257,2]
[424741744,1781112639000,-312.8122159,0.00015262,2]
[424741754,1781112639000,-164.24619909,0.00015262,2]
[424741745,1781112639000,-326.87918977,0.00015262,2]
[424741753,1781112639000,-247.80026072,0.00015262,2]
[424741746,1781112639000,-195.05666751,0.00015262,2]
[424741747,1781112639000,-413.35499773,0.00015262,2]
[424741748,1781112639000,-203.09649016,0.00015262,2]
[424741749,1781112639000,-242.49899563,0.00015262,2]
[424741752,1781112639000,-186.78549425,0.00015262,2]
[424741751,1781112639000,-194.26289364,0.00015262,2]
[424741755,1781112639000,-227.05179068,0.00015262,2]
[424741750,1781112639000,-157.64999843,0.00015262,2]
[424741757,1781112639000,-374.4729158,0.00015262,2]
[424741767,1781112639000,-162.38440097,0.00015722,2]
[424741768,1781112639000,-253.26058726,0.00015722,2]
[424741766,1781112639000,-488.4726985,0.00015722,2]
[424741764,1781112639000,-344.49161818,0.00015722,2]
[424741760,1781112639000,-432.57466705,0.00015265,2]
[424741758,1781112639000,-391.38278375,0.00015265,2]
[424741763,1781112639000,-191.50156448,0.00015722,2]
[424741761,1781112639000,-210.54948387,0.00015722,2]
[424741762,1781112639000,-198.7798742,0.00015722,2]
[424741797,1781112639000,-315.29999686,0.00015728,2]
[424741853,1781112639000,-521.86775403,0.00016038,2]
[424741798,1781112639000,-388.52578727,0.00015728,2]
[424741835,1781112639000,-449.27459118,0.00016033,2]
[424741828,1781112639000,-317.53878567,0.00016033,2]
[424741832,1781112639000,-574.50469344,0.00016033,2]
[424741830,1781112639000,-716.12160304,0.00016033,2]
[424741827,1781112639000,-599.85031252,0.00016033,2]
[424741837,1781112639000,-253.05448148,0.00016033,2]
[424741833,1781112639000,-735.83409644,0.00016033,2]
[424741834,1781112639000,-608.24586288,0.00016033,2]
[424741838,1781112639000,-289.80091181,0.00016033,2]
[424741840,1781112639000,-512.27103394,0.00016033,2]
[424741839,1781112639000,-198.80327127,0.00016033,2]
[424741850,1781112639000,-826.70999546,0.00016038,2]
[424741851,1781112639000,-609.28947049,0.00016038,2]
[424741844,1781112639000,-500.65584241,0.00016038,2]
[424741849,1781112639000,-328.89079289,0.00016038,2]
[424741842,1781112639000,-625.62443179,0.00016038,2]
[424741843,1781112639000,-226.71660342,0.00016038,2]
[424741841,1781112639000,-186.45143832,0.00016038,2]
[424741845,1781112639000,-653.75837954,0.00016038,2]
[424741846,1781112639000,-312.67715383,0.00016038,2]
[424741848,1781112639000,-585.17000252,0.00016038,2]
[424741847,1781112639000,-394.46767381,0.00016038,2]
[424741852,1781112639000,-290.30098427,0.00016038,2]
[424741854,1781112639000,-266.65280337,0.00016038,2]
[424741857,1781112639000,-560.35648274,0.00016038,2]
[424741856,1781112639000,-561.00531022,0.00016038,2]
[424741800,1781112639000,-161.53107687,0.00015728,2]
[424741836,1781112639000,-580.94662268,0.00016033,2]
[424741831,1781112639000,-627.80959695,0.00016033,2]
[424741855,1781112639000,-472.94999529,0.00016038,2]
[424741826,1781112639000,-365.93000428,0.00016033,2]
[424741829,1781112639000,-250.25740535,0.00016033,2]
[424741799,1781112639000,-280.50265511,0.00015728,2]
[424741801,1781112639000,-373.57098849,0.00015728,2]
[424741804,1781112639000,-495.60052143,0.00015728,2]
[424741802,1781112639000,-184.07461497,0.00015728,2]
[424741805,1781112639000,-176.65705106,0.00015728,2]
[424741803,1781112639000,-187.38549467,0.00015728,2]
[424741811,1781112639000,-479.92111989,0.00015731,2]
[424741806,1781112639000,-328.49239818,0.00015728,2]
[424741812,1781112639000,-648.86200057,0.00015731,2]
[424741809,1781112639000,-312.38940582,0.00015728,2]
[424741810,1781112639000,-587.07417562,0.00015731,2]
[424741807,1781112639000,-454.10358136,0.00015728,2]
[424741796,1781112639000,-208.49838858,0.00015728,2]
[424741823,1781112639000,-671.3431843,0.00016033,2]
[424741820,1781112639000,-324.76880194,0.00016033,2]
[424741818,1781112639000,-153.97585592,0.00016033,2]
[424741817,1781112639000,-192.83355787,0.00016033,2]
[424741821,1781112639000,-506.52117451,0.00016033,2]
[424741808,1781112639000,-561.7093737,0.00015728,2]
[424741813,1781112639000,-407.4427219,0.00016033,2]
[424741819,1781112639000,-732.70904776,0.00016033,2]
[424741815,1781112639000,-397.55974841,0.00016033,2]
[424741814,1781112639000,-421.09896774,0.00016033,2]
[424741824,1781112639000,-681.11971714,0.00016033,2]
[424741825,1781112639000,-159.14374237,0.00016033,2]
[424741822,1781112639000,-256.30551002,0.00016033,2]
[424741816,1781112639000,-516.73742728,0.00016033,2]
[424741906,1781112640000,-500.0,0.00019178,2]
[424741905,1781112640000,-500.32655012,0.00019178,2]
[424741909,1781112640000,-504.22200164,0.00019178,2]
[424741903,1781112640000,-500.0,0.00019178,2]
[424741900,1781112640000,-500.0,0.00019178,2]
[424741896,1781112640000,-500.0,0.00019178,2]
[424741894,1781112640000,-500.0,0.00019178,2]
[424741892,1781112640000,-499.45860825,0.00019178,2]
[424741902,1781112640000,-500.0,0.00019178,2]
[424741899,1781112640000,-500.0,0.00019178,2]
[424741898,1781112640000,-500.0,0.00019178,2]
[424741908,1781112640000,-500.0,0.00019178,2]
[424741915,1781112640000,-524.61197613,0.00019178,2]
[424741907,1781112640000,-500.0,0.00019178,2]
[424741910,1781112640000,-500.0,0.00019178,2]
[424741911,1781112640000,-500.0,0.00019178,2]
[424741912,1781112640000,-500.0,0.00019178,2]
[424741919,1781112640000,-500.0,0.00019178,2]
[424741918,1781112640000,-491.58540495,0.00019178,2]
[424741914,1781112640000,-500.0,0.00019178,2]
[424741913,1781112640000,-500.35121402,0.00019178,2]
[424741916,1781112640000,-500.0,0.00019178,2]
[424741922,1781112640000,-501.49286759,0.00019178,2]
[424741923,1781112640000,-404.20875778,0.00019178,2]
[424741901,1781112640000,-500.0,0.00019178,2]
[424741904,1781112640000,-500.84787847,0.00019178,2]
[424741885,1781112640000,-615.78,0.00019178,2]
[424741869,1781112640000,-481.77646145,0.00016041,2]
[424741886,1781112640000,-500.0,0.00019178,2]
[424741863,1781112640000,-492.73859728,0.00016038,2]
[424741860,1781112640000,-353.31410211,0.00016038,2]
[424741864,1781112640000,-196.68147408,0.00016038,2]
[424741917,1781112640000,-500.0,0.00019178,2]
[424741861,1781112640000,-743.40078215,0.00016038,2]
[424741859,1781112640000,-368.14922994,0.00016038,2]
[424741858,1781112640000,-323.06215374,0.00016038,2]
[424741862,1781112640000,-281.56480637,0.00016038,2]
[424741866,1781112640000,-748.9458316,0.00016038,2]
[424741876,1781112640000,-217.963,0.00016971,2]
[424741868,1781112640000,-416.99677717,0.00016041,2]
[424741865,1781112640000,-253.88109755,0.00016038,2]
[424741881,1781112640000,-152.0,0.00018405,7]
[424741867,1781112640000,-539.53033659,0.00016038,2]
[424741870,1781112640000,-673.05234818,0.00016041,2]
[424741873,1781112640000,-639.89482652,0.00016041,2]
[424741872,1781112640000,-782.7655675,0.00016041,2]
[424741875,1781112640000,-799.86853315,0.00016352,2]
[424741874,1781112640000,-865.1493341,0.00016041,2]
[424741877,1781112640000,-788.62,0.0001799,3]
[424741878,1781112640000,-23876.67850998,0.00018,2]
[424741883,1781112640000,-168.94,0.0001863,2]
[424741884,1781112640000,-168.94,0.00018904,2]
[424741887,1781112640000,-60.66304808,0.00019178,2]
[424741880,1781112640000,-440.7401924,0.00018079,2]
[424741879,1781112640000,-237.61801081,0.00018,2]
[424741871,1781112640000,-400.0023925,0.00016041,2]
[424741920,1781112640000,-501.3388184,0.00019178,2]
[424741987,1781112640000,-553.97026782,0.000192,2]
[424741928,1781112640000,-500.82432062,0.00019178,2]
[424741960,1781112640000,-500.0,0.00019178,2]
[424741962,1781112640000,-500.0,0.00019178,2]
[424741963,1781112640000,-632.82,0.00019178,2]
[424741971,1781112640000,-544.34,0.00019178,2]
[424741965,1781112640000,-500.0,0.00019178,2]
[424741968,1781112640000,-500.0,0.00019178,2]
[424741964,1781112640000,-200.00121701,0.00019178,2]
[424741967,1781112640000,-500.0,0.00019178,2]
[424741966,1781112640000,-500.0,0.00019178,2]
[424741972,1781112640000,-500.0,0.00019178,2]
[424741975,1781112640000,-515.22,0.00019178,2]